Workbook

Sheet Dataset
B2: Calculating Subtotal with VBA
B4: Product ID | C4: Product Name | D4: Quantity | E4: Price per Piece | F4: Sales in January | G4: Sales in February | H4: Sales in March
B5: 101 | C5: Cricket Ball | D5: 100 | E5: 50 | F5: =30*$E5 -> 1500 | G5: =50*$E5 -> 2500 | H5: =20*$E5 -> 1000
B6: 102 | C6: Cricket Ball | D6: 150 | E6: 100 | F6: =50*$E6 -> 5000 | G6: =70*$E6 -> 7000 | H6: =30*$E6 -> 3000
B7: 103 | C7: Cricket Ball | D7: 200 | E7: 80 | F7: =30*$E7 -> 2400 | G7: =100*$E7 -> 8000 | H7: =50*$E7 -> 4000
B8: 104 | C8: Football | D8: 350 | E8: 35 | F8: =200*$E8 -> 7000 | G8: =100*$E8 -> 3500 | H8: =50*$E8 -> 1750
B9: 105 | C9: Football | D9: 250 | E9: 40 | F9: =20*$E9 -> 800 | G9: =30*$E9 -> 1200 | H9: =90*$E9 -> 3600
B10: 106 | C10: Football | D10: 300 | E10: 75 | F10: =180*$E10 -> 13500 | G10: =80*$E10 -> 6000 | H10: =40*$E10 -> 3000
B11: 107 | C11: Football | D11: 550 | E11: 60 | F11: =300*$E11 -> 18000 | G11: =200*$E11 -> 12000 | H11: =30*$E11 -> 1800
B12: 108 | C12: Tennis Ball | D12: 50 | E12: 10 | F12: =40*$E12 -> 400 | G12: =8*$E12 -> 80 | H12: =2*$E12 -> 20
B13: 109 | C13: Tennis Ball | D13: 400 | E13: 15 | F13: =145*$E13 -> 2175 | G13: =210*$E13 -> 3150 | H13: =25*$E13 -> 375
B14: 110 | C14: Tennis Ball | D14: 450 | E14: 8 | F14: =35*$E14 -> 280 | G14: =60*$E14 -> 480 | H14: =40*$E14 -> 320

Sheet Subtotal
B2: Calculating Subtotal with VBA
B4: Product ID | C4: Product Name | D4: Quantity | E4: Price per Piece | F4: Sales in January | G4: Sales in February | H4: Sales in March
B5: 101 | C5: Cricket Ball | D5: 100 | E5: 50 | F5: =30*$E5 -> 1500 | G5: =50*$E5 -> 2500 | H5: =20*$E5 -> 1000
B6: 102 | C6: Cricket Ball | D6: 150 | E6: 100 | F6: =50*$E6 -> 5000 | G6: =70*$E6 -> 7000 | H6: =30*$E6 -> 3000
B7: 103 | C7: Cricket Ball | D7: 200 | E7: 80 | F7: =30*$E7 -> 2400 | G7: =100*$E7 -> 8000 | H7: =50*$E7 -> 4000
C8: Subtotal Cricket Ball | F8: =SUM(F$5:F$7) -> 8900 | G8: =SUM(G$5:G$7) -> 17500 | H8: =SUM(H$5:H$7) -> 8000
B9: 104 | C9: Football | D9: 350 | E9: 35 | F9: =200*$E9 -> 7000 | G9: =100*$E9 -> 3500 | H9: =50*$E9 -> 1750
B10: 105 | C10: Football | D10: 250 | E10: 40 | F10: =20*$E10 -> 800 | G10: =30*$E10 -> 1200 | H10: =90*$E10 -> 3600
B11: 106 | C11: Football | D11: 300 | E11: 75 | F11: =180*$E11 -> 13500 | G11: =80*$E11 -> 6000 | H11: =40*$E11 -> 3000
B12: 107 | C12: Football | D12: 550 | E12: 60 | F12: =300*$E12 -> 18000 | G12: =200*$E12 -> 12000 | H12: =30*$E12 -> 1800
C13: Subtotal Football | F13: =SUM(F$9:F$12) -> 39300 | G13: =SUM(G$9:G$12) -> 22700 | H13: =SUM(H$9:H$12) -> 10150
B14: 108 | C14: Tennis Ball | D14: 50 | E14: 10 | F14: =40*$E14 -> 400 | G14: =8*$E14 -> 80 | H14: =2*$E14 -> 20
B15: 109 | C15: Tennis Ball | D15: 400 | E15: 15 | F15: =145*$E15 -> 2175 | G15: =210*$E15 -> 3150 | H15: =25*$E15 -> 375
B16: 110 | C16: Tennis Ball | D16: 450 | E16: 8 | F16: =35*$E16 -> 280 | G16: =60*$E16 -> 480 | H16: =40*$E16 -> 320
C17: Subtotal Tennis Ball | F17: =SUM(F$14:F$16) -> 2855 | G17: =SUM(G$14:G$16) -> 3710 | H17: =SUM(H$14:H$16) -> 715

Sheet Subtotal Button
B2: Calculating Subtotal with Button in VBA
B4: Product ID | C4: Product Name | D4: Quantity | E4: Price per Piece | F4: January | G4: February | H4: March
B5: 101 | C5: Cricket Ball | D5: 100 | E5: 50 | F5: =30*$E5 -> 1500 | G5: =50*$E5 -> 2500 | H5: =20*$E5 -> 1000
B6: 102 | C6: Cricket Ball | D6: 150 | E6: 100 | F6: =50*$E6 -> 5000 | G6: =70*$E6 -> 7000 | H6: =30*$E6 -> 3000
B7: 103 | C7: Cricket Ball | D7: 200 | E7: 80 | F7: =30*$E7 -> 2400 | G7: =100*$E7 -> 8000 | H7: =50*$E7 -> 4000
C8: Cricket Ball Total | F8: =SUBTOTAL(9,F5:F7) -> 8900 | G8: =SUBTOTAL(9,G5:G7) -> 17500 | H8: =SUBTOTAL(9,H5:H7) -> 8000
B9: 104 | C9: Football | D9: 350 | E9: 35 | F9: =200*$E9 -> 7000 | G9: =100*$E9 -> 3500 | H9: =50*$E9 -> 1750
B10: 105 | C10: Football | D10: 250 | E10: 40 | F10: =20*$E10 -> 800 | G10: =30*$E10 -> 1200 | H10: =90*$E10 -> 3600
B11: 106 | C11: Football | D11: 300 | E11: 75 | F11: =180*$E11 -> 13500 | G11: =80*$E11 -> 6000 | H11: =40*$E11 -> 3000
B12: 107 | C12: Football | D12: 550 | E12: 60 | F12: =300*$E12 -> 18000 | G12: =200*$E12 -> 12000 | H12: =30*$E12 -> 1800
C13: Football Total | F13: =SUBTOTAL(9,F9:F12) -> 39300 | G13: =SUBTOTAL(9,G9:G12) -> 22700 | H13: =SUBTOTAL(9,H9:H12) -> 10150
B14: 108 | C14: Tennis Ball | D14: 50 | E14: 10 | F14: =40*$E14 -> 400 | G14: =8*$E14 -> 80 | H14: =2*$E14 -> 20
B15: 109 | C15: Tennis Ball | D15: 400 | E15: 15 | F15: =145*$E15 -> 2175 | G15: =210*$E15 -> 3150 | H15: =25*$E15 -> 375
B16: 110 | C16: Tennis Ball | D16: 450 | E16: 8 | F16: =35*$E16 -> 280 | G16: =60*$E16 -> 480 | H16: =40*$E16 -> 320
C17: Tennis Ball Total | F17: =SUBTOTAL(9,F14:F16) -> 2855 | G17: =SUBTOTAL(9,G14:G16) -> 3710 | H17: =SUBTOTAL(9,H14:H16) -> 715
C18: Grand Total | F18: =SUBTOTAL(9,F5:F16) -> 51055 | G18: =SUBTOTAL(9,G5:G16) -> 43910 | H18: =SUBTOTAL(9,H5:H16) -> 18865

Sheet Subtotal Selected
B2: Calculating Subtotal for a Specified Range with Button in VBA
B4: Product ID | C4: Product Name | D4: Quantity | E4: Price per Piece | F4: January | G4: February | H4: March
B5: 101 | C5: Cricket Ball | D5: 100 | E5: 50 | F5: =30*$E5 -> 1500 | G5: =50*$E5 -> 2500 | H5: =20*$E5 -> 1000
B6: 102 | C6: Cricket Ball | D6: 150 | E6: 100 | F6: =50*$E6 -> 5000 | G6: =70*$E6 -> 7000 | H6: =30*$E6 -> 3000
B7: 103 | C7: Cricket Ball | D7: 200 | E7: 80 | F7: =30*$E7 -> 2400 | G7: =100*$E7 -> 8000 | H7: =50*$E7 -> 4000
C8: Cricket Ball Total | F8: =SUBTOTAL(9,F5:F7) -> 8900 | G8: =SUBTOTAL(9,G5:G7) -> 17500 | H8: =SUBTOTAL(9,H5:H7) -> 8000
B9: 104 | C9: Football | D9: 350 | E9: 35 | F9: =200*$E9 -> 7000 | G9: =100*$E9 -> 3500 | H9: =50*$E9 -> 1750
B10: 105 | C10: Football | D10: 250 | E10: 40 | F10: =20*$E10 -> 800 | G10: =30*$E10 -> 1200 | H10: =90*$E10 -> 3600
B11: 106 | C11: Football | D11: 300 | E11: 75 | F11: =180*$E11 -> 13500 | G11: =80*$E11 -> 6000 | H11: =40*$E11 -> 3000
B12: 107 | C12: Football | D12: 550 | E12: 60 | F12: =300*$E12 -> 18000 | G12: =200*$E12 -> 12000 | H12: =30*$E12 -> 1800
C13: Football Total | F13: =SUBTOTAL(9,F9:F12) -> 39300 | G13: =SUBTOTAL(9,G9:G12) -> 22700 | H13: =SUBTOTAL(9,H9:H12) -> 10150
C14: Grand Total | F14: =SUBTOTAL(9,F5:F12) -> 48200 | G14: =SUBTOTAL(9,G5:G12) -> 40200 | H14: =SUBTOTAL(9,H5:H12) -> 18150
B15: 108 | C15: Tennis Ball | D15: 50 | E15: 10 | F15: =40*$E15 -> 400 | G15: =8*$E15 -> 80 | H15: =2*$E15 -> 20
B16: 109 | C16: Tennis Ball | D16: 400 | E16: 15 | F16: =145*$E16 -> 2175 | G16: =210*$E16 -> 3150 | H16: =25*$E16 -> 375
B17: 110 | C17: Tennis Ball | D17: 450 | E17: 8 | F17: =35*$E17 -> 280 | G17: =60*$E17 -> 480 | H17: =40*$E17 -> 320
